bitfinex-derivatives/quotes_ETHF0:USTF0_20260305
["timestamp","ask_amount","ask_price","bid_price","bid_amount"]
[1772673964572,10.28099279,2129.3,2127.9,0.00400161]
[1772673964573,1.94159612,2128.6,2127.9,0.00400161]
[1772673965070,1.94159612,2128.6,2127.6,2.05399201]
[1772673965273,1.94159612,2128.6,2127.0,2.05399201]
[1772673966066,1.94159612,2128.6,2127.1,0.235]
[1772673966273,1.94159612,2128.6,2127.6,2.05399201]
[1772673968580,1.94159612,2128.6,2127.4,2.05399201]
[1772673968874,1.94159612,2128.3,2127.4,2.05399201]
[1772673969070,1.94619232,2128.3,2127.4,2.05399201]
[1772673974570,0.0045962,2128.3,2127.4,2.05399201]
[1772673974775,0.0045962,2128.3,2127.6,2.05399201]
[1772673975574,1.94619232,2128.3,2127.6,2.05399201]
[1772673978484,1.94619232,2128.3,2127.4,2.05406458]
[1772673978685,2.06563323,2128.2,2127.1,2.05406458]
[1772673982787,2.06563323,2128.2,2127.0,0.0046001]
[1772673982988,2.06563323,2127.9,2127.0,0.0046001]
[1772673983188,2.06563323,2127.9,2127.0,2.05866468]
[1772673983595,2.06563323,2128.2,2127.2,2.05406458]
[1772673987995,2.06563323,2128.2,2127.4,1.96204432]
[1772673988590,0.0045962,2128.3,2127.4,1.96204432]
[1772673988794,2.68399279,2128.9,2128.2,1.96204432]
[1772673988795,1.8809787,2128.9,2128.2,1.96204432]
[1772673988996,1.8809787,2129.1,2128.4,1.96204432]
[1772673989395,1.8809787,2129.1,2127.9,1.96204432]
[1772673989997,1.88434648,2129.1,2127.9,1.96204432]
[1772673999804,1.88434648,2129.1,2127.7,1.96204432]
[1772673999805,1.8809787,2128.8,2127.7,1.96204432]
[1772674002002,1.8809787,2128.5,2127.5,1.96204432]
[1772674002507,1.8809787,2128.5,2127.5,2.19699432]
[1772674003105,1.8809787,2128.5,2127.5,1.96204432]
[1772674010015,1.97346935,2128.6,2127.5,1.96204432]
[1772674010215,1.97346935,2128.6,2127.6,1.85736808]
[1772674013512,1.97346935,2128.6,2127.8,1.85736808]
[1772674013713,1.97346935,2128.7,2127.8,1.85736808]
[1772674014314,1.97346935,2128.7,2127.5,1.85736808]
[1772674015921,1.97346935,2128.6,2127.5,1.85736808]
[1772674017021,1.97346935,2128.6,2127.3,1.85736808]
[1772674017218,1.97346935,2128.5,2127.3,1.85736808]
[1772674017425,1.97346935,2128.4,2127.1,1.85736808]
[1772674018218,1.97346935,2128.3,2127.1,1.85736808]
[1772674018723,1.97346935,2128.2,2127.0,0.0046001]
[1772674018922,1.97346935,2128.0,2127.0,0.0046001]
[1772674019122,1.97346935,2127.8,2127.0,1.86196818]
[1772674019522,3.90644946,2128.3,2127.0,1.86196818]
[1772674019523,1.97346935,2128.2,2127.0,1.86196818]
[1772674022925,5.87991881,2128.2,2127.0,0.0046001]
[1772674023228,1.97346935,2127.7,2126.3,1.85736808]
[1772674023429,1.97346935,2127.5,2126.3,1.85736808]
[1772674024224,1.97720705,2127.5,2126.3,1.86178289]
[1772674024824,1.97720705,2127.5,2126.3,0.00441481]
[1772674026426,1.97720705,2127.5,2126.3,1.86178289]
[1772674026730,1.97346935,2127.4,2126.3,1.86178289]
[1772674027722,1.97720705,2127.5,2126.7,1.85736808]
[1772674028823,1.97346935,2127.9,2126.9,1.85736808]
[1772674029831,1.97858549,2127.9,2126.9,1.85736808]
[1772674036135,1.97858549,2127.9,2127.1,1.85736808]
[1772674036738,0.00511614,2127.9,2127.2,0.23499]
[1772674037041,5.86071084,2128.7,2127.3,1.85736808]
[1772674037042,1.97346935,2128.3,2127.3,1.85736808]
[1772674037243,1.97346935,2128.3,2127.5,1.85736808]
[1772674037942,0.00509688,2128.3,2127.5,1.85736808]
[1772674039347,2.05165662,2128.6,2127.5,1.85736808]
[1772674040246,2.05497311,2128.6,2127.5,1.85736808]
[1772674040446,0.00331649,2128.6,2127.9,1.94570424]
[1772674040747,0.00331649,2128.6,2127.9,1.95141405]
[1772674041151,2.05165662,2128.9,2127.9,1.95141405]
[1772674042244,2.05531692,2128.9,2127.9,1.95141405]
[1772674047252,0.0036603,2128.9,2128.1,1.93227917]
[1772674047553,1.97405889,2128.9,2128.1,1.93227917]
[1772674051451,1.97039859,2129.6,2128.6,1.93227917]
[1772674051753,1.97039859,2130.3,2128.8,1.93227917]
[1772674052344,1.97624066,2130.3,2129.0,1.93227917]
[1772674054352,1.97624066,2130.3,2129.2,1.93227917]
[1772674055454,1.97624066,2130.3,2129.4,1.93227917]
[1772674055656,1.97624066,2130.3,2129.4,1.93711471]
[1772674060058,1.97624066,2130.3,2129.4,0.00483554]
[1772674060256,1.97624066,2130.3,2128.4,1.93227917]
[1772674060660,1.97624066,2130.3,2128.6,1.93227917]
[1772674061155,1.97624066,2130.3,2128.6,1.93614267]
[1772674061660,1.97624066,2130.3,2128.8,1.93227917]
[1772674062751,1.97624066,2130.3,2129.0,1.93227917]
[1772674062957,1.97624066,2130.3,2128.7,1.93227917]
[1772674063557,1.97039859,2130.2,2128.7,1.93227917]
[1772674065364,1.97039859,2130.2,2128.9,1.93227917]
[1772674067657,1.97039859,2130.2,2129.1,1.93227917]
[1772674076575,1.93860353,2130.0,2128.7,2.1209016]
[1772674077470,1.93860353,2129.9,2128.7,2.1209016]
[1772674077669,1.93860353,2129.7,2128.6,2.1247651]
[1772674077873,1.93860353,2129.7,2128.6,0.0038635]
[1772674077874,1.93860353,2129.4,2128.6,0.0038635]
[1772674078272,1.93860353,2129.4,2128.6,2.1247651]
[1772674080075,1.93860353,2129.4,2128.6,0.0038635]
[1772674080271,1.93860353,2129.1,2128.0,2.1209016]
[1772674081276,1.93860353,2129.1,2128.0,2.12592653]
[1772674085582,1.93860353,2129.4,2128.4,2.1209016]
[1772674085984,3.90644946,2129.8,2128.6,2.1209016]
[1772674086184,1.93860353,2129.7,2128.6,2.1209016]
[1772674088184,1.93860353,2129.7,2128.8,2.1209016]
[1772674093880,1.93860353,2129.7,2128.6,0.23483]
[1772674094088,1.93860353,2129.7,2128.7,2.1209016]
[1772674098991,1.93860353,2129.7,2128.8,1.96220782]
[1772674103995,1.94448638,2129.9,2129.1,1.96220782]
[1772674105999,1.94448638,2129.7,2128.8,1.96220782]
[1772674106201,1.94448638,2129.6,2128.8,1.96220782]
[1772674110598,6.102658,2129.8,2128.8,1.96220782]
[1772674110800,2.19620854,2129.7,2128.8,1.96220782]
[1772674114399,2.19620854,2129.6,2128.8,1.96220782]
[1772674114807,2.19620854,2129.5,2128.4,5.85755042]
[1772674115103,2.19620854,2129.3,2128.3,2.21159331]
[1772674115305,3.90644946,2129.4,2128.4,2.21159331]
[1772674115506,6.102658,2129.7,2128.7,2.21159331]
[1772674115705,2.19620854,2129.6,2128.7,2.21159331]
[1772674115899,3.90644946,2129.7,2128.7,2.21159331]
[1772674116100,2.19620854,2129.7,2128.7,2.21159331]
[1772674117806,6.102658,2129.9,2129.0,2.21159331]
[1772674118007,2.19620854,2129.9,2129.0,2.21159331]
[1772674120605,2.19620854,2130.0,2129.0,2.21159331]
[1772674122704,2.19620854,2130.2,2129.0,2.21159331]
[1772674123708,2.19620854,2130.2,2129.1,2.21159331]
[1772674127712,2.19620854,2130.0,2129.1,2.21159331]
[1772674128515,2.08405151,2129.8,2129.1,2.21159331]
[1772674130107,2.08405151,2129.9,2129.1,2.21159331]
[1772674131520,2.08405151,2130.1,2129.1,2.21159331]
[1772674136614,2.08405151,2130.1,2128.8,6.09236042]
[1772674136819,2.08405151,2130.0,2128.9,2.15543712]
[1772674139917,2.08405151,2129.9,2128.9,2.15543712]
[1772674140721,2.08405151,2129.5,2128.5,2.15543712]
[1772674140927,2.08405151,2129.3,2128.5,2.15543712]
[1772674142120,2.08405151,2129.3,2128.4,9.79143712]
[1772674142522,2.08405151,2129.3,2128.1,2.15543712]
[1772674143821,2.08405151,2129.2,2128.1,2.15543712]
[1772674148122,2.08405151,2129.2,2128.0,9.79946205]
[1772674148323,2.08405151,2129.0,2127.7,2.15543712]
[1772674148530,2.08405151,2128.8,2127.7,2.15543712]
[1772674149324,2.08976802,2128.8,2127.7,2.15899054]
[1772674150126,2.08405151,2128.6,2127.7,2.15899054]
[1772674155623,2.08405151,2128.6,2127.7,0.00355342]
[1772674156031,2.08405151,2128.6,2127.7,2.15899054]
[1772674156732,2.67891535,2128.5,2126.9,2.15543712]
[1772674156928,2.08405151,2128.4,2126.9,2.15543712]
[1772674157733,2.08405151,2128.4,2126.9,2.15960353]
[1772674159028,2.19518843,2128.2,2126.9,2.15960353]
[1772674159225,2.19518843,2128.0,2126.9,2.15960353]
[1772674167535,2.10686939,2128.2,2127.1,1.96214684]
[1772674170140,2.10686939,2128.2,2127.3,1.96214684]
[1772674170942,2.10686939,2128.2,2127.0,1.96214684]
[1772674172244,2.10686939,2128.1,2127.0,1.96214684]
[1772674177943,6.00481908,2128.1,2127.0,1.96214684]
[1772674178146,2.10686939,2128.0,2127.0,1.96214684]
[1772674181147,2.10686939,2127.9,2127.0,1.96214684]
[1772674182344,2.10686939,2127.8,2127.0,1.96214684]
[1772674183750,9.01691535,2128.4,2127.0,1.96214684]
[1772674183751,2.10686939,2128.3,2127.1,2.1255462]
[1772674184355,2.10686939,2128.3,2127.2,1.89037199]
[1772674185549,7.69,2128.5,2127.5,1.89025595]
[1772674185755,9.79686939,2128.5,2127.5,1.89025595]
[1772674186254,2.10686939,2128.4,2127.5,1.89025595]
[1772674186454,7.69,2128.5,2127.5,1.89025595]
[1772674186854,9.79686939,2128.5,2127.5,1.89025595]
[1772674188447,2.10686939,2128.4,2127.5,1.89025595]
[1772674190458,2.10686939,2128.4,2127.6,1.89227983]
[1772674192354,2.10686939,2128.4,2127.4,1.8895586]
[1772674196659,2.0989213,2128.8,2128.0,1.85481391]
[1772674198561,2.0989213,2128.8,2127.8,1.87394222]
[1772674200169,4.78129235,2128.8,2127.4,1.87142586]
[1772674200364,2.09320479,2128.7,2127.4,1.87142586]
[1772674200570,2.09320479,2128.7,2127.8,1.86574341]
[1772674200872,2.09320479,2128.7,2127.3,1.86574341]
[1772674203161,2.09320479,2128.1,2127.1,1.85714006]
[1772674203361,2.09320479,2127.8,2126.9,1.86117877]
[1772674203666,2.09320479,2127.2,2126.4,1.85890752]
[1772674203870,2.09320479,2127.7,2126.7,1.85890752]
[1772674204469,2.09739809,2127.7,2126.7,1.86341501]
[1772674205866,0.0041933,2127.7,2127.0,1.84617958]
[1772674206977,2.09739809,2127.7,2127.0,1.84617958]
[1772674207670,2.09320479,2128.2,2127.0,1.84617958]
[1772674208675,2.0980879,2128.2,2127.0,1.84617958]
[1772674209175,2.0980879,2128.2,2127.3,1.88622678]
[1772674209376,0.00488311,2128.2,2127.6,1.88608565]
[1772674210272,2.09320479,2129.0,2127.9,2.09008211]
[1772674211370,2.09685126,2129.0,2127.9,2.09008211]
[1772674211674,2.09685126,2129.0,2128.0,1.85082149]
[1772674213370,2.09685126,2129.0,2127.6,1.85289244]
[1772674213569,2.09320479,2128.7,2127.4,15.31138944]
[1772674213770,2.09320479,2128.7,2127.5,1.85083902]
[1772674214370,2.09320479,2128.7,2127.7,1.84750244]
[1772674214572,2.09320479,2128.7,2127.7,2.08243244]
[1772674216374,2.09320479,2128.7,2127.8,1.84202056]
[1772674217172,2.09320479,2128.7,2127.7,0.23493]
[1772674217374,2.09320479,2128.7,2127.6,1.84003708]
[1772674217776,2.09320479,2128.7,2127.7,1.8379613]
[1772674217976,2.09320479,2128.7,2127.4,1.8379613]
[1772674218573,1.93530307,2128.4,2127.2,1.84191811]
[1772674218770,1.93530307,2128.1,2126.8,1.84191811]
[1772674218974,1.93530307,2127.8,2126.7,0.00450749]
[1772674219179,1.93530307,2127.8,2126.9,1.84191811]
[1772674220075,1.93530307,2128.2,2126.9,2.07693811]
[1772674221278,1.93530307,2128.2,2127.0,1.83445351]
[1772674222675,1.93530307,2128.1,2126.8,1.83312946]
[1772674225979,1.93530307,2128.1,2126.7,0.00450749]
[1772674225980,1.93530307,2127.8,2126.7,0.00450749]
[1772674226178,1.93530307,2127.6,2126.7,0.00450749]
[1772674227282,1.93530307,2127.6,2126.7,1.82152845]
[1772674230088,1.96729917,2128.0,2126.9,1.85266019]
[1772674230585,1.96729917,2128.0,2127.2,1.84080525]
[1772674230887,1.96729917,2128.5,2127.4,1.84080525]
[1772674232082,1.96729917,2128.7,2128.0,1.83906735]
[1772674232477,1.96729917,2128.9,2128.0,1.83906735]
[1772674232883,1.96729917,2128.9,2128.1,1.8396089]
[1772674233484,0.00364647,2129.0,2128.1,1.8396089]
[1772674233789,1.97094564,2129.0,2128.1,1.8396089]
[1772674234186,1.96729917,2128.9,2127.5,1.83790982]
[1772674234387,1.96729917,2128.6,2127.5,1.83790982]
[1772674234689,1.96729917,2128.6,2127.2,1.83669388]
[1772674235077,1.96729917,2128.3,2127.2,1.83669388]
[1772674235479,1.96729917,2128.2,2127.0,1.83503343]
[1772674235682,1.96729917,2128.0,2127.0,1.83503343]
[1772674236286,1.96729917,2128.0,2126.7,0.00450749]
[1772674236480,1.96729917,2128.0,2126.7,1.85258406]
[1772674241379,1.96729917,2128.0,2126.7,2.08762406]
[1772674241584,1.96729917,2128.0,2126.9,1.86584654]
[1772674244189,1.96729917,2128.0,2127.2,1.86785236]
[1772674245084,1.96729917,2128.0,2127.2,2.10284236]
[1772674245989,1.96729917,2128.0,2127.2,1.86785236]
[1772674246182,1.96729917,2128.0,2126.9,1.86270269]
[1772674249792,1.96729917,2128.0,2127.1,1.85522356]
[1772674250487,2.00520327,2128.4,2127.3,1.85561281]
[1772674250693,2.00520327,2128.4,2127.5,1.85431896]
[1772674250883,2.00520327,2128.4,2127.7,1.85431896]
[1772674251088,2.00520327,2128.8,2127.9,1.85431896]
[1772674251283,2.00520327,2128.8,2127.8,0.23492]
[1772674251284,2.00520327,2128.8,2127.7,1.85421993]
[1772674252090,0.00364647,2129.0,2128.2,1.85294095]
[1772674252395,2.00884974,2129.0,2128.2,0.00393691]
[1772674254997,2.00884974,2129.0,2127.6,2.07647303]
[1772674255197,2.00520327,2128.8,2127.6,2.07647303]
[1772674256091,2.00520327,2128.8,2127.6,2.08178303]
[1772674258498,2.00520327,2128.8,2127.6,1.84684303]
[1772674258699,2.00520327,2128.8,2127.6,0.00531]
[1772674258700,4.68739217,2128.8,2127.6,0.00531]
[1772674258898,2.00520327,2128.6,2127.2,1.83563121]
[1772674259700,2.00520327,2128.5,2127.4,1.83968831]
[1772674259999,2.00520327,2128.5,2127.4,1.84366207]
[1772674260395,2.00520327,2128.5,2127.6,1.83498509]
[1772674263204,5.90577797,2128.5,2127.4,0.00397376]
[1772674263404,2.00520327,2128.4,2127.4,0.00397376]
[1772674265200,5.90577797,2128.4,2127.4,0.00397376]
[1772674265406,9.66120327,2128.3,2127.4,0.00397376]
[1772674265708,2.00520327,2128.2,2127.4,0.00397376]
[1772674268198,2.00520327,2128.2,2126.8,1.83467939]
[1772674268400,2.00520327,2127.9,2126.8,1.83467939]
[1772674268605,2.00520327,2127.8,2126.8,1.83467939]
[1772674269211,2.00520327,2127.8,2126.8,1.83871494]
[1772674276509,2.00520327,2127.8,2126.8,0.00403555]
[1772674276815,2.00520327,2127.6,2126.4,1.81254116]
[1772674277116,2.00520327,2127.5,2126.2,1.81657671]
[1772674277315,2.00520327,2127.4,2126.2,1.81657671]
[1772674277710,2.00870577,2127.4,2126.2,1.81990795]
[1772674279609,2.00870577,2127.4,2126.2,0.00333124]
[1772674280015,1.96624036,2127.3,2126.2,0.00333124]
[1772674281709,1.96624036,2127.3,2126.1,1.83999107]
[1772674281710,1.96624036,2127.1,2126.0,0.1]
[1772674281912,1.96624036,2126.9,2126.0,2.00895885]
[1772674282110,1.96624036,2126.9,2126.0,1.90895885]
[1772674282711,1.96624036,2126.9,2126.0,1.91332395]
[1772674283420,1.96624036,2126.9,2126.0,0.0043651]
[1772674283610,1.96624036,2126.9,2125.6,1.90895885]
[1772674284017,1.96624036,2126.7,2125.1,1.90895885]
[1772674284416,1.96624036,2126.5,2125.3,1.90895885]
[1772674284619,1.96624036,2126.5,2125.3,1.91351919]
[1772674285724,5.86681506,2126.4,2125.3,0.00456034]
[1772674285922,1.96624036,2126.3,2125.3,0.00456034]
[1772674286220,1.96624036,2126.3,2125.3,1.91351919]
[1772674286620,1.96624036,2126.2,2125.3,1.91351919]
[1772674288621,1.96624036,2126.2,2125.3,0.00456034]
[1772674289621,1.96624036,2126.2,2125.3,1.97488946]
[1772674290317,1.84870977,2126.1,2125.3,1.97488946]
[1772674292324,1.84870977,2126.3,2125.3,1.97488946]
[1772674297427,1.84870977,2126.3,2125.3,0.00456034]
[1772674298122,1.84870977,2126.3,2125.3,1.96171981]
[1772674298323,1.84870977,2126.2,2125.3,1.96171981]
[1772674298730,1.84870977,2126.2,2125.3,0.00456034]
[1772674299121,1.84870977,2126.1,2124.5,1.96133446]
[1772674299426,1.84870977,2126.0,2124.5,1.96133446]
[1772674299622,1.84870977,2125.8,2124.5,1.96133446]
[1772674299828,1.84870977,2125.7,2124.5,1.96133446]
[1772674300026,1.85402204,2125.7,2124.5,1.9666589]
[1772674302527,1.85402204,2125.7,2124.7,1.96466092]
[1772674302528,0.00531227,2125.7,2124.7,1.96466092]
[1772674302930,7.675,2126.1,2124.6,0.23527]
[1772674302931,9.52370977,2126.1,2125.1,1.96397676]
[1772674303126,9.52370977,2126.1,2125.3,1.96397676]
[1772674303127,1.84870977,2126.1,2125.3,1.96397676]
[1772674303432,1.84870977,2126.5,2125.5,1.96397676]
[1772674303623,1.84870977,2126.5,2125.6,0.23516]
[1772674303829,1.84870977,2126.9,2125.7,1.96322522]
[1772674304130,1.85364695,2126.9,2125.7,1.96322522]
[1772674307435,1.85364695,2126.9,2125.9,1.94198461]
[1772674308524,0.00493718,2126.9,2125.9,1.94198461]
[1772674308727,0.00493718,2126.9,2126.1,1.73888899]
[1772674308926,0.00493718,2126.9,2126.1,1.74257647]
[1772674309636,1.87677394,2127.3,2126.3,1.73861695]
[1772674310540,1.88159837,2127.3,2126.3,1.73861695]
[1772674310933,1.88159837,2127.3,2126.1,1.75562185]
[1772674311234,1.87677394,2127.1,2126.1,0.00368748]
[1772674311431,1.87677394,2126.7,2125.3,1.75186215]
[1772674311632,1.87677394,2126.5,2125.3,1.75186215]
[1772674312432,1.87677394,2126.5,2125.3,1.75569709]
[1772674315541,1.87677394,2126.5,2125.4,1.72394128]
[1772674318441,1.87677394,2126.7,2125.8,1.63463907]
[1772674320144,1.87677394,2126.9,2126.0,1.63345108]
[1772674320746,7.676,2127.2,2125.6,13.14311]
[1772674320747,1.87677394,2127.2,2126.3,1.62471989]
[1772674320950,1.87677394,2127.6,2126.7,1.62471989]
[1772674321257,1.87677394,2127.6,2126.3,1.62471989]
[1772674321745,1.87677394,2127.6,2126.5,1.62411987]
[1772674322242,1.88090042,2127.6,2126.5,1.62411987]
[1772674322646,1.88090042,2127.6,2126.2,4.29135003]
[1772674322948,1.88090042,2127.6,2126.2,1.60263511]
[1772674323342,1.88090042,2127.6,2126.4,1.60259235]
[1772674323743,1.87677394,2127.5,2126.4,1.60259235]
[1772674325850,0.00412648,2127.6,2125.9,5.85755042]
[1772674325851,0.00412648,2127.6,2126.7,1.58719177]
[1772674326645,1.88090042,2127.6,2126.7,1.58719177]
[1772674327247,0.00412648,2127.6,2126.7,1.58719177]
[1772674327550,1.87677394,2128.0,2127.0,1.81778053]
[1772674328551,1.87677394,2128.8,2127.6,1.58191586]
[1772674329550,1.88280041,2128.8,2127.6,1.58191586]
[1772674330240,1.87677394,2128.6,2127.4,1.59355891]
[1772674330444,1.87677394,2128.3,2127.2,1.59355891]
[1772674331047,1.87677394,2128.3,2127.3,1.59306032]
[1772674331452,1.87677394,2128.7,2127.3,1.59306032]
[1772674331653,1.87677394,2128.7,2127.6,1.59252859]
[1772674332650,1.87677394,2128.7,2127.9,1.57239818]
[1772674332852,0.00602647,2128.8,2127.9,1.57239818]
[1772674333551,1.88280041,2128.8,2127.9,1.57239818]
[1772674333952,1.88280041,2128.8,2127.7,1.57190078]
[1772674334752,1.87677394,2128.5,2127.3,1.56612073]
[1772674335158,1.87677394,2128.2,2127.1,1.56612073]
[1772674341159,1.87677394,2128.2,2127.1,1.80112073]
[1772674346377,1.87677394,2128.2,2127.3,1.79974595]
[1772674348681,1.94245988,2127.9,2127.0,0.00426462]
[1772674349577,1.94245988,2127.6,2126.7,1.78569697]
[1772674350479,2.68871492,2127.4,2126.3,1.77485988]
[1772674350676,1.94245988,2127.0,2125.8,1.77843234]
[1772674351471,1.94245988,2127.0,2125.3,5.85755042]
[1772674351472,1.94245988,2126.7,2125.3,1.77840405]
[1772674351678,1.94245988,2126.4,2125.3,1.78302995]
[1772674357488,1.94245988,2126.1,2125.3,0.0046259]
[1772674357686,1.94245988,2125.8,2124.6,1.76026422]
[1772674358679,1.94245988,2125.8,2124.6,1.76394338]
[1772674361288,1.94245988,2125.8,2124.6,0.00367916]
[1772674361492,1.94245988,2125.8,2124.6,1.78509449]
[1772674361791,1.94245988,2125.8,2124.8,1.78109922]
[1772674362185,1.94245988,2125.8,2124.6,0.00367916]
[1772674362186,1.94245988,2125.8,2124.6,1.78477838]
[1772674362794,7.637,2126.3,2124.6,0.00367916]
[1772674362795,1.94245988,2125.5,2124.6,0.00367916]
[1772674362998,1.94245988,2125.2,2124.2,1.78148826]
[1772674363987,1.94761302,2125.2,2124.2,1.7854848]
[1772674369697,0.00515314,2125.2,2124.4,1.78462966]
[1772674370098,1.95429959,2125.2,2124.4,1.78462966]
[1772674371496,1.95429959,2125.2,2124.2,0.00399654]
[1772674371701,1.94914645,2124.9,2124.2,0.00399654]
[1772674372095,1.94914645,2124.9,2124.2,1.72323226]
[1772674375000,1.94914645,2124.9,2124.2,0.00399654]
[1772674375904,1.94914645,2124.9,2124.2,1.72732503]
[1772674376307,1.94914645,2125.1,2124.2,1.72732503]
[1772674381203,1.94914645,2125.1,2124.4,1.73269743]
[1772674381605,1.94914645,2125.1,2124.2,0.00399654]
[1772674382008,1.94914645,2125.1,2124.2,1.73643147]
[1772674383404,0.00515314,2125.2,2124.4,1.72768576]
[1772674383614,1.95429959,2125.2,2124.4,1.72768576]
[1772674384710,1.95429959,2125.2,2124.2,1.71843822]
[1772674385307,1.95429959,2125.2,2124.2,1.95374822]
[1772674387012,0.00515314,2125.2,2124.2,1.95374822]
[1772674387412,1.94914645,2125.1,2124.2,1.95374822]
[1772674391517,0.00515314,2125.2,2124.2,1.95374822]
[1772674391709,5.30856412,2125.2,2124.2,1.95374822]
[1772674392112,7.25771057,2125.2,2124.2,1.95374822]
[1772674392311,1.95429959,2125.2,2124.2,1.95374822]
[1772674394116,1.95429959,2125.2,2124.3,1.69209637]
[1772674395015,1.94914645,2125.0,2124.2,0.00399654]
[1772674395209,1.94914645,2124.8,2124.2,0.00399654]
[1772674397915,1.94914645,2124.8,2124.0,0.1]
[1772674398611,5.29712038,2124.7,2124.0,0.1]
[1772674398806,1.91717134,2124.5,2124.0,0.1]
[1772674399010,1.91717134,2124.5,2124.0,0.10367387]
[1772674401618,1.91717134,2124.3,2123.5,1.77397605]
[1772674402523,1.91717134,2124.3,2123.5,1.77846998]
[1772674402819,1.91717134,2124.5,2123.7,1.77342646]
[1772674403122,1.91717134,2124.5,2123.5,0.00449393]
[1772674403123,1.91717134,2124.7,2124.1,1.77342646]
[1772674403323,1.91717134,2125.1,2124.1,1.77342646]
[1772674403522,1.91717134,2124.9,2124.1,1.77342646]
[1772674403724,1.91717134,2124.9,2124.3,1.77322527]
[1772674405123,0.00515314,2125.2,2124.5,1.80493696]
[1772674405317,1.92232448,2125.2,2124.5,1.80493696]
[1772674406119,1.92232448,2125.2,2124.3,1.80473871]
[1772674406329,1.92232448,2125.2,2124.1,1.80473871]
[1772674406622,1.95523421,2125.1,2123.9,9.0439743]
[1772674406823,1.95523421,2125.1,2123.9,1.7889743]
[1772674407422,1.95523421,2125.1,2123.7,1.78917795]
[1772674412430,1.95523421,2125.1,2123.6,7.255]
[1772674412431,3.8712269,2124.9,2123.5,0.00449393]
[1772674412629,1.95523421,2124.6,2123.5,0.00449393]
[1772674412825,1.95523421,2124.4,2123.5,0.00449393]
[1772674413035,1.95523421,2124.3,2123.1,1.79297048]
[1772674413927,1.95523421,2124.3,2123.1,1.79671405]
[1772674418033,1.95523421,2124.3,2123.1,1.80250074]
[1772674418729,1.95523421,2124.3,2123.1,0.00374357]
[1772674419330,1.95523421,2124.3,2123.1,1.69318132]
[1772674420931,1.95523421,2124.3,2123.3,1.68862784]
[1772674421132,1.95523421,2124.1,2123.1,0.00374357]
[1772674421436,1.95523421,2123.9,2122.7,1.68862784]
[1772674421632,1.95523421,2123.9,2122.5,1.69154797]
[1772674421831,1.95523421,2123.8,2122.3,1.69154797]
[1772674422331,1.95523421,2123.8,2122.3,1.6955441]
[1772674422734,5.82646111,2123.8,2122.3,0.00399613]
[1772674422934,1.95523421,2123.7,2122.3,1.65618976]
[1772674423237,1.9608107,2123.7,2122.3,1.65618976]
[1772674424438,1.95523421,2123.5,2122.3,0.00399613]
[1772674424638,1.95523421,2123.3,2122.3,0.00399613]
[1772674426238,9.52823421,2123.3,2122.3,0.00399613]
[1772674426433,1.95523421,2123.2,2122.3,0.00399613]
[1772674427241,1.95523421,2123.0,2122.3,0.00399613]
[1772674428332,1.95523421,2123.0,2122.3,1.65114333]
[1772674428539,1.95523421,2123.0,2121.2,1.64617803]
[1772674429232,1.95523421,2123.0,2121.6,1.64617803]
[1772674429539,1.95523421,2123.0,2122.1,0.23555]
[1772674429742,1.95523421,2123.0,2122.2,1.64541438]
[1772674430131,1.95523421,2123.0,2122.0,1.64541438]
[1772674430336,1.95523421,2123.0,2121.8,1.61487076]
[1772674430740,1.90530412,2122.9,2121.8,1.61487076]
[1772674431938,1.90530412,2122.9,2122.0,1.6134623]
[1772674434940,1.90530412,2122.9,2122.2,1.53035276]
[1772674435141,1.90530412,2122.9,2122.0,1.53035276]
[1772674435337,1.90530412,2122.9,2121.7,7.248]
[1772674435338,1.90530412,2122.9,2121.8,1.53035276]
[1772674435931,1.90530412,2122.9,2121.7,7.248]
[1772674435932,1.90530412,2122.9,2122.0,1.52968571]
[1772674436134,1.90530412,2123.1,2121.7,1.52968571]
[1772674436741,1.90530412,2123.1,2121.9,1.52308567]
[1772674437843,1.90530412,2123.1,2122.1,1.52243485]
[1772674440445,1.90530412,2123.6,2122.3,1.52890878]
[1772674440635,1.90530412,2123.6,2122.4,0.23552]
[1772674440843,1.90530412,2123.6,2122.7,1.52837078]
[1772674441444,1.90530412,2123.6,2122.9,1.52837754]
[1772674441645,3.8712269,2124.3,2123.1,1.53559135]
[1772674441946,1.90530412,2124.2,2123.3,1.53559135]
[1772674442143,1.90530412,2124.2,2123.5,1.53559135]
[1772674442641,1.91126448,2124.2,2123.5,1.53965509]
[1772674444148,1.90530412,2124.9,2123.7,1.50420863]
[1772674444451,1.90530412,2124.9,2123.5,1.48541328]
[1772674445051,1.91058233,2124.9,2123.5,1.48541328]
[1772674445458,1.91058233,2124.9,2123.7,1.48075607]
[1772674446054,1.91058233,2124.9,2123.9,1.48015505]
[1772674446651,1.90530412,2124.6,2123.5,0.00406374]
[1772674446850,1.90530412,2124.3,2123.5,0.00406374]
[1772674447053,1.90530412,2124.3,2123.5,1.47387245]
[1772674447254,1.90530412,2124.3,2123.5,0.00406374]
[1772674449260,1.90530412,2124.3,2123.5,1.44141961]
[1772674449661,1.90530412,2124.8,2123.5,1.44141961]
[1772674450861,1.90530412,2124.8,2123.7,1.4173976]
[1772674452060,1.90530412,2124.8,2124.0,1.41678943]
[1772674453061,0.00527821,2124.9,2124.0,1.41678943]
[1772674453254,1.91058233,2124.9,2124.0,1.41678943]
[1772674454764,1.91058233,2124.9,2123.8,1.6516162]
[1772674456564,0.00527821,2124.9,2124.0,1.65176906]
[1772674456765,0.00527821,2124.9,2124.3,1.41583154]
[1772674458166,1.91058233,2124.9,2124.1,1.4152638]
[1772674458770,0.00527821,2124.9,2124.3,1.40242713]
[1772674459464,1.88081744,2124.9,2124.0,8.59441917]
[1772674459664,1.88081744,2124.9,2124.1,1.40241917]
[1772674461767,1.87553923,2125.6,2124.3,1.34750412]
[1772674461972,1.87553923,2125.6,2124.3,1.58281412]
[1772674462971,1.88111011,2125.6,2124.3,1.58281412]
[1772674464064,1.88111011,2125.6,2124.3,1.34750412]
[1772674464271,1.87553923,2125.3,2124.1,1.34860683]
[1772674465670,1.87553923,2125.3,2124.3,1.34471406]
[1772674465875,1.87553923,2125.5,2124.6,1.34471406]
[1772674466771,1.87553923,2125.5,2124.8,1.34354889]
[1772674466977,1.98032614,2125.6,2124.9,1.34354889]
[1772674472979,1.98032614,2125.6,2124.7,0.23526]
[1772674473378,1.98032614,2125.6,2124.6,8.57825714]
[1772674473578,1.98032614,2125.6,2124.7,1.40627479]
[1772674475076,1.98032614,2125.6,2124.5,1.41811383]
[1772674477182,1.98032614,2125.6,2124.3,1.42195664]
[1772674477376,1.97475526,2125.4,2124.3,1.42195664]
[1772674478679,1.97475526,2125.4,2124.2,0.23531]
[1772674478886,1.97475526,2125.4,2124.2,1.65603142]
[1772674479381,1.97475526,2125.4,2124.3,1.42073595]
[1772674479786,1.97475526,2125.4,2124.6,1.42029283]
[1772674480984,1.97475526,2125.4,2124.8,1.41760051]
[1772674482486,1.97475526,2125.4,2124.7,7.173]
[1772674482684,1.97475526,2125.1,2124.2,1.39865904]
[1772674482891,1.97475526,2125.1,2124.0,7.30672308]
[1772674483087,1.97475526,2125.1,2124.0,8.57323101]
[1772674483591,1.97475526,2124.8,2123.7,7.30631609]
[1772674483891,1.97475526,2124.8,2123.7,1.39782402]